bitfinex/quotes_SOLUSD_20250918
["timestamp","ask_amount","ask_price","bid_price","bid_amount"]
[1758236309826,6.90757131,247.16,247.09,0.03]
[1758236310335,4.63604581,247.16,247.09,0.03]
[1758236310531,6.90757131,247.16,247.09,0.03]
[1758236313429,4.63604581,247.16,247.09,0.03]
[1758236313626,6.90757131,247.16,247.09,0.03]
[1758236314032,6.31774961,247.15,247.09,0.03]
[1758236314527,6.90774961,247.15,247.09,0.03]
[1758236315526,6.90774961,247.15,247.09,32.35]
[1758236316529,4.63622411,247.15,247.09,32.35]
[1758236319339,0.59,247.14,247.09,32.31]
[1758236319520,6.31774961,247.15,247.09,32.31]
[1758236319718,0.59,247.14,247.09,32.31]
[1758236320811,4.04645328,247.13,247.09,32.31]
[1758236321232,6.90797878,247.13,247.09,0.03]
[1758236321416,2.8615255,247.12,247.09,0.03]
[1758236321806,0.59,247.11,247.09,0.03]
[1758236322224,14.75258648,247.13,247.09,0.03]
[1758236322417,2.8615255,247.12,247.09,0.03]
[1758236322936,4.04678078,247.11,247.09,0.03]
[1758236323311,4.63674164,247.12,247.09,0.03]
[1758236323515,4.04674164,247.12,247.09,0.03]
[1758236323729,2.55584864,247.16,247.1,0.66]
[1758236323921,6.60182818,247.16,247.1,0.66]
[1758236324124,6.45966661,247.16,247.1,0.66]
[1758236324619,2.2715255,247.15,247.1,0.66]
[1758236324825,4.04628955,247.14,247.11,0.66]
[1758236325020,4.04628955,247.14,247.09,0.03]
[1758236325350,4.04628955,247.14,247.09,0.69]
[1758236325539,4.04628955,247.14,247.1,0.66]
[1758236326117,4.63628955,247.14,247.09,0.03]
[1758236326532,4.63628955,247.14,247.09,0.69]
[1758236326739,4.04628955,247.14,247.09,0.69]
[1758236329040,4.04596212,247.16,247.1,0.66]
[1758236329937,4.04596212,247.16,247.1,32.82]
[1758236330140,32.1297322,247.17,247.11,0.66]
[1758236330450,38.44713789,247.17,247.11,0.66]
[1758236331270,2.2715255,247.12,247.09,0.03]
[1758236331542,2.2715255,247.11,247.09,0.03]
[1758236331943,2.8615255,247.11,247.09,0.03]
[1758236332251,6.76874604,247.1,247.09,0.03]
[1758236332855,7.42874604,247.1,247.06,20.3]
[1758236333441,11.47571469,247.1,247.05,32.14]
[1758236333646,11.47571469,247.1,247.05,32.12]
[1758236334117,7.42874604,247.1,247.05,32.12]
[1758236334824,7.42874604,247.1,247.05,32.77]
[1758236335731,7.42874604,247.1,247.06,0.03]
[1758236336320,11.475764,247.1,247.06,0.03]
[1758236338242,11.475764,247.1,247.06,0.74]
[1758236338930,7.42874604,247.1,247.06,0.03]
[1758236339248,11.47569523,247.1,247.06,0.74]
[1758236339649,10.81569523,247.1,247.06,0.74]
[1758236340246,6.76874604,247.1,247.06,0.74]
[1758236341150,4.72710834,247.09,247.06,0.03]
[1758236341351,6.99863384,247.09,247.06,0.03]
[1758236341735,2.2715255,247.08,247.06,0.03]
[1758236342156,0.68,247.07,247.06,0.03]
[1758236342829,4.72743594,247.07,247.06,0.03]
[1758236343734,0.68,247.07,247.06,0.03]
[1758236343929,6.76874604,247.1,247.06,0.03]
[1758236344132,6.76874604,247.1,247.06,0.74]
[1758236344338,6.76874604,247.1,247.07,0.71]
[1758236344957,6.76874604,247.1,247.07,4.75742223]
[1758236345443,6.76874604,247.1,247.08,0.71]
[1758236346561,6.76874604,247.1,247.08,4.75726987]
[1758236348542,6.76874604,247.1,247.06,4.78759977]
[1758236348742,6.76874604,247.1,247.07,0.71]
[1758236349566,6.76874604,247.1,247.07,4.75731172]
[1758236352156,6.82874604,247.1,247.07,4.75731172]
[1758236354467,0.68,247.09,247.06,0.03]
[1758236354670,0.68,247.09,247.06,31.97]
[1758236355062,5.4152814,247.08,247.06,31.97]
[1758236359177,5.4152814,247.08,247.06,36.01751851]
[1758236359556,0.68,247.07,247.06,0.03]
[1758236361166,5.4152814,247.08,247.06,0.03]
[1758236361577,6.0952814,247.08,247.06,0.03]
[1758236362961,5.4152814,247.08,247.06,0.03]
[1758236364478,5.4152814,247.08,247.06,0.74]
[1758236364669,5.4152814,247.08,247.07,0.71]
[1758236364866,5.4152814,247.08,247.06,0.03]
[1758236365079,5.4152814,247.08,247.06,0.72]
[1758236366675,5.4152814,247.08,247.06,4.76754949]
[1758236368891,5.4752814,247.08,247.06,4.76754949]
[1758236372386,5.4752814,247.08,247.06,4.07754949]
[1758236372790,5.4752814,247.08,247.07,0.69]
[1758236374902,0.06,247.08,247.07,4.73743594]
[1758236375686,0.06,247.08,247.07,4.04743594]
[1758236375997,0.06,247.08,247.06,4.07752298]
[1758236376201,0.06,247.08,247.06,4.76752298]
[1758236377086,0.06,247.08,247.06,4.07752298]
[1758236377297,0.06,247.08,247.07,4.73743594]
[1758236377486,0.06,247.08,247.07,4.04743594]
[1758236378606,0.77,247.08,247.06,0.03]
[1758236378810,0.71,247.07,247.06,0.03]
[1758236379600,0.06,247.08,247.06,0.03]
[1758236379986,0.06,247.08,247.06,0.72]
[1758236381425,0.71,247.07,247.06,0.03]
[1758236381705,0.06,247.08,247.06,0.03]
[1758236382196,0.77,247.08,247.06,0.03]
[1758236383406,0.06,247.08,247.07,0.69]
[1758236385104,0.06,247.08,247.07,4.73743594]
[1758236389731,0.06,247.08,247.06,0.03]
[1758236390201,0.06,247.08,247.07,31.74]
[1758236391622,0.06,247.08,247.07,35.78743594]
[1758236392130,0.06,247.08,247.07,36.47743594]
[1758236400624,0.06,247.08,247.07,35.78743594]
[1758236400921,0.73,247.08,247.07,35.78743594]
[1758236402303,0.73,247.08,247.07,31.74]
[1758236402504,0.73,247.08,247.06,0.03]
[1758236402904,0.06,247.08,247.06,0.03]
[1758236403221,0.67,247.07,247.06,0.03]
[1758236406523,0.06,247.08,247.06,0.03]
[1758236406725,0.73,247.08,247.06,0.03]
[1758236407022,0.67,247.07,247.06,0.03]
[1758236407811,0.06,247.08,247.06,0.03]
[1758236408203,0.06,247.08,247.07,0.68]
[1758236408637,0.06,247.08,247.07,4.72743594]
[1758236408802,0.06,247.08,247.07,4.04743594]
[1758236409004,0.73,247.08,247.07,4.04743594]
[1758236409335,0.06,247.08,247.07,4.04743594]
[1758236411112,0.73,247.08,247.07,4.04743594]
[1758236411632,0.06,247.08,247.07,4.04743594]
[1758236412234,0.06,247.08,247.06,0.03]
[1758236414018,0.73,247.08,247.06,0.03]
[1758236414222,0.67,247.07,247.06,0.03]
[1758236416617,0.34432314,247.08,247.06,0.03]
[1758236416618,0.06,247.08,247.06,0.03]
[1758236417138,0.06,247.08,247.06,0.71]
[1758236417627,0.06,247.08,247.07,0.68]
[1758236419737,0.06,247.08,247.07,4.72743594]
[1758236422231,0.06,247.08,247.07,4.04743594]
[1758236423747,0.06,247.08,247.06,4.07759977]
[1758236424149,0.67,247.07,247.06,0.03]
[1758236425850,0.06,247.08,247.06,0.03]
[1758236426347,0.06,247.08,247.07,0.71]
[1758236426653,0.06,247.08,247.06,0.03]
[1758236426948,0.06,247.08,247.07,0.71]
[1758236427351,0.06,247.08,247.07,4.75743594]
[1758236429142,0.06,247.08,247.07,4.04743594]
[1758236429348,0.06,247.08,247.06,0.03]
[1758236429545,0.06,247.08,247.06,0.74]
[1758236430353,0.06,247.08,247.06,0.03]
[1758236430657,0.74,247.08,247.06,0.03]
[1758236430838,0.68,247.07,247.06,0.03]
[1758236431744,4.72743594,247.07,247.06,0.03]
[1758236433159,0.68,247.07,247.06,0.03]
[1758236433958,44.32302995,247.07,247.06,0.03]
[1758236434141,46.88126881,247.07,247.06,0.03]
[1758236434654,44.60735309,247.07,247.06,0.03]
[1758236436162,14.55991715,247.07,247.06,0.03]
[1758236436769,0.68,247.07,247.06,0.03]
[1758236436966,0.74,247.07,247.06,0.03]
[1758236437267,0.06,247.07,247.06,0.03]
[1758236439555,44.77385725,247.07,247.01,1e-08]
[1758236439862,39.87991715,247.02,247.01,1e-08]
[1758236440246,42.15383287,247.02,247.01,1e-08]
[1758236440447,42.18069553,247.02,247.01,1e-08]
[1758236440860,44.45461125,247.02,247.01,1e-08]
[1758236441559,81.76286645,247.02,247.01,1e-08]
[1758236442276,83.75786645,247.02,247.01,1e-08]
[1758236442480,81.46395073,247.02,247.01,1e-08]
[1758236442687,83.73786645,247.02,247.01,1e-08]
[1758236443287,43.49569553,247.02,247.01,1e-08]
[1758236443584,46.44961125,247.02,247.01,1e-08]
[1758236444596,44.17569553,247.02,247.01,1e-08]
[1758236444775,46.44961125,247.02,247.01,1e-08]
[1758236445290,79.70961125,247.02,247.01,1e-08]
[1758236445667,39.59559401,246.98,246.91,0.1]
[1758236445902,16.15383287,246.92,246.91,0.1]
[1758236446068,13.87991715,246.92,246.91,0.1]
[1758236446275,48.19991715,246.92,246.91,0.1]
[1758236446571,51.15383287,246.92,246.91,0.1]
[1758236447670,55.20372757,246.92,246.91,0.1]
[1758236447888,55.40797026,246.92,246.91,0.1]
[1758236448404,18.13405454,246.92,246.91,0.1]
[1758236448574,55.34797026,246.92,246.91,0.1]
[1758236448969,55.34797026,246.92,246.91,1e-08]
[1758236449189,0.51886348,246.88,246.84,6.89e-06]
[1758236449389,42.15383287,246.85,246.84,6.89e-06]
[1758236449590,13.87991715,246.85,246.84,6.89e-06]
[1758236449802,21.59439077,246.85,246.84,0.65002807]
[1758236449979,7.71447362,246.85,246.84,0.65002807]
[1758236450177,6.09277529,246.85,246.7,13.59559401]
[1758236450375,6.09277529,246.85,246.7,17.64910029]
[1758236450597,32.09277529,246.85,246.7,27.78286599]
[1758236450801,26.0,246.82,246.7,14.18727198]
[1758236450982,13.87991715,246.81,246.66,6.31488582]
[1758236451184,26.0,246.77,246.61,4.0549856]
[1758236451502,26.0,246.77,246.63,4.05465677]
[1758236451684,26.28432314,246.78,246.6,12.16421693]
[1758236451881,26.0,246.77,246.61,13.59559401]
[1758236452197,2.52122217,246.76,246.62,0.71]
[1758236453082,28.52122217,246.76,246.62,0.71]
[1758236453280,26.0,246.72,246.62,0.71]
[1758236453480,26.0,246.72,246.63,4.05465677]
[1758236453481,0.28432314,246.71,246.63,4.05465677]
[1758236453700,6.08094467,246.71,246.64,0.71]
[1758236454275,5.79662153,246.71,246.64,0.71]
[1758236454792,5.79662153,246.71,246.65,14.0010268]
[1758236454982,5.79662153,246.71,246.66,0.69]
[1758236455680,5.79662153,246.71,246.67,14.18899744]
[1758236456004,5.79662153,246.71,246.68,0.69]
[1758236457687,5.79662153,246.71,246.69,4.05367059]
[1758236457891,5.79662153,246.71,246.7,0.69]
[1758236460593,5.79662153,246.71,246.69,4.05367059]
[1758236461195,5.79662153,246.71,246.7,0.69]
[1758236461918,5.79662153,246.71,246.7,26.69]
[1758236462105,0.65,246.83,246.71,14.18669693]
[1758236462307,0.65,246.83,246.72,0.69]
[1758236462685,0.93432314,246.83,246.72,0.69]
[1758236463402,5.26968942,246.83,246.72,0.69]
[1758236463612,5.26968942,246.83,246.71,14.18669693]
[1758236463613,0.28432314,246.8,246.71,4.05334198]
[1758236463790,0.65,246.79,246.71,4.05334198]
[1758236463989,0.65,246.78,246.71,4.05334198]
[1758236464616,0.65,246.78,246.71,14.18669693]
[1758236465624,0.28432314,246.81,246.71,14.18669693]
[1758236465811,0.65,246.8,246.71,14.87669693]
[1758236466115,0.65,246.8,246.72,0.69]
[1758236466316,4.33536628,246.83,246.72,0.69]
[1758236466497,16.97260362,246.99,246.72,0.69]
[1758236466498,0.65,246.89,246.75,26.0]
[1758236466811,0.65,246.89,246.79,26.0]
[1758236467185,0.65,246.89,246.8,0.69]
[1758236467386,0.65,246.89,246.8,34.42]
[1758236467916,0.65,246.91,246.81,14.8709489]
[1758236468211,0.65,246.91,246.84,26.0]
[1758236468397,1.0,246.92,246.84,26.69]
[1758236468590,0.65,246.91,246.84,26.69]
[1758236469800,1.0,246.92,246.85,14.86865099]
[1758236470190,1.0,246.92,246.85,4.05104314]
[1758236470495,0.65,246.91,246.84,38.37115391]
[1758236471194,3.06607729,246.9,246.8,4.05172244]
[1758236471393,3.06607729,246.9,246.75,20.26324795]
[1758236471394,2.55823886,246.87,246.75,34.97]
[1758236471598,0.65,246.86,246.75,34.97]
[1758236471814,0.93432314,246.85,246.76,4.05252066]
[1758236472206,0.65,246.84,246.76,4.05252066]
[1758236472895,2.55823886,246.85,246.71,10.13334005]
[1758236473100,0.93432314,246.83,246.72,4.74317769]
[1758236473300,0.65,246.82,246.72,4.74317769]
[1758236473502,0.65,246.81,246.72,4.74317769]
[1758236473919,0.65,246.81,246.72,14.87612191]
[1758236475311,0.28432314,246.8,246.72,4.74317769]
[1758236475624,0.65,246.79,246.7,4.05334957]
[1758236475827,4.98653142,246.78,246.69,0.03]
[1758236476516,30.98653142,246.78,246.69,0.03]
[1758236477514,0.65,246.81,246.7,26.69]
[1758236477813,26.0,246.83,246.72,14.18612191]
[1758236478012,0.65,246.84,246.73,0.69]
[1758236478317,4.84338678,246.84,246.73,0.69]
[1758236478507,0.14216157,246.83,246.73,0.69]
[1758236478707,0.65,246.82,246.73,0.69]
[1758236479112,0.14216157,246.84,246.73,0.69]
[1758236479508,0.65,246.85,246.75,26.0]
[1758236479739,10.18533159,246.91,246.75,26.0]
[1758236479740,0.65,246.88,246.76,0.69]
[1758236479934,4.76013949,246.91,246.77,14.18324755]
[1758236480105,1.38552312,246.9,246.78,0.69]
[1758236480302,1.10119998,246.9,246.78,0.69]
[1758236480820,1.10119998,246.9,246.82,26.0]
[1758236481016,1.10119998,246.9,246.83,0.69]
[1758236482024,1.10119998,246.9,246.84,4.05120725]
[1758236482235,1.10119998,246.9,246.85,0.69]
[1758236482444,1.10119998,246.9,246.86,0.69]
[1758236482736,0.06,246.91,246.86,0.69]
[1758236483415,0.06,246.91,246.87,14.86750232]
[1758236483834,0.06,246.91,246.88,0.69]
[1758236484225,0.06,246.91,246.87,4.05071495]
[1758236484809,0.65,246.9,246.85,4.05090156]
[1758236485044,0.65,246.9,246.83,33.92]
[1758236485045,0.65,246.9,246.83,37.97121934]
[1758236485242,0.65,246.9,246.83,38.65121934]
[1758236486313,0.65,246.89,246.82,33.92]
[1758236486536,0.65,246.89,246.81,4.05157413]
[1758236487316,0.06,246.91,246.82,0.68]
[1758236487816,0.65,246.9,246.82,0.68]
[1758236489333,0.65,246.9,246.72,20.0]
[1758236489334,0.28432314,246.88,246.79,4.05190915]
[1758236489645,0.65,246.87,246.79,4.05190915]
[1758236490032,1.7434186,246.88,246.79,4.05190915]
[1758236490328,0.28432314,246.85,246.76,4.05245513]
[1758236490731,0.65,246.84,246.78,26.0]
[1758236491119,2.10909546,246.83,246.74,4.05272657]
[1758236491318,4.05153553,246.82,246.74,33.76]
[1758236491534,0.65,246.81,246.74,33.76]
[1758236491734,0.65,246.81,246.74,37.81284266]
[1758236492247,0.65,246.81,246.74,4.05284266]
[1758236492941,0.65,246.8,246.71,0.03]
[1758236493152,0.28432314,246.79,246.71,0.03]
[1758236493324,4.70223146,246.78,246.71,0.03]
[1758236493742,0.65,246.78,246.71,0.03]
[1758236494145,0.28432314,246.79,246.71,0.71]
[1758236494542,0.79216157,246.81,246.71,0.71]
[1758236495244,26.65,246.84,246.71,0.71]
[1758236495455,0.65,246.84,246.75,26.0]
[1758236495654,0.65,246.84,246.75,26.68]
[1758236496566,0.06,246.85,246.76,0.68]
[1758236496735,0.06,246.85,246.76,34.72525206]
[1758236496929,0.06,246.85,246.77,0.68]
[1758236497429,0.06,246.85,246.78,14.18267281]
[1758236497749,0.06,246.85,246.79,0.68]
[1758236498542,0.06,246.85,246.78,14.18267281]
[1758236498859,0.06,246.85,246.78,4.05219223]
[1758236499063,4.11105362,246.85,246.76,4.73235872]
[1758236499229,0.65,246.84,246.76,38.33235872]
[1758236499630,4.31056949,246.83,246.73,4.05301341]
[1758236499848,0.28432314,246.81,246.73,4.05301341]
[1758236500233,0.65,246.8,246.73,4.05301341]
[1758236501228,0.93432314,246.82,246.73,4.05301341]
[1758236501647,0.06,246.85,246.74,26.68]
[1758236501958,0.06,246.85,246.75,0.68]
[1758236502255,0.06,246.85,246.76,26.0]
[1758236502453,0.06,246.85,246.77,34.2]
[1758236502963,0.06,246.85,246.78,4.73219223]
[1758236503333,0.06,246.85,246.78,14.86267281]
[1758236504239,0.06,246.85,246.78,14.18267281]
[1758236504444,0.06,246.85,246.81,26.0]
[1758236504854,0.06,246.85,246.82,0.68]
[1758236505052,0.06,246.85,246.83,37.51137138]
[1758236505257,0.06,246.85,246.83,38.19137138]
[1758236505637,0.06,246.85,246.84,0.68]
[1758236507040,0.06,246.85,246.84,4.73120725]
[1758236507244,0.06,246.85,246.84,4.05120725]
[1758236508936,0.06,246.85,246.84,4.73120725]
[1758236509241,0.06,246.85,246.83,33.46]
[1758236510943,0.65,246.84,246.8,4.05170212]
[1758236511149,0.65,246.83,246.81,33.32]
[1758236511474,0.65,246.82,246.8,33.32]
[1758236511657,0.65,246.81,246.79,0.03]
[1758236512566,0.65,246.8,246.79,0.03]
[1758236514857,0.06,246.85,246.79,0.75]
[1758236516151,0.06,246.85,246.8,4.05186385]
[1758236516348,0.06,246.85,246.81,0.72]
[1758236516654,0.06,246.85,246.82,33.22]
[1758236518855,0.06,246.85,246.83,4.05137138]
[1758236519047,0.06,246.85,246.83,4.77137138]
[1758236519246,0.06,246.85,246.83,4.05137138]
[1758236519459,0.06,246.85,246.83,4.77137138]
[1758236519761,0.06,246.85,246.84,0.72]
[1758236519964,0.06,246.85,246.81,33.14]
[1758236520164,0.06,246.85,246.81,33.86]
[1758236520772,0.06,246.85,246.81,37.19164387]
[1758236520971,0.71,246.84,246.81,33.14]
[1758236521167,0.06,246.85,246.81,33.14]
[1758236521470,0.77,246.85,246.81,33.14]
[1758236521663,0.71,246.84,246.81,33.14]
[1758236522677,4.11106087,246.85,246.81,33.14]
[1758236522881,0.71,246.84,246.81,33.14]
[1758236523061,0.71,246.83,246.81,33.14]
[1758236523251,0.71,246.82,246.81,33.14]
[1758236523755,0.71,246.84,246.81,33.14]
[1758236523955,0.06,246.85,246.81,33.14]
[1758236524160,0.06,246.85,246.82,0.72]
[1758236524573,0.06,246.85,246.83,33.76]
[1758236525372,0.71,246.84,246.79,0.03]
[1758236525606,0.71,246.83,246.79,0.03]
[1758236526089,7.77161284,246.85,246.79,0.03]
[1758236526382,0.28432314,246.83,246.79,0.03]
[1758236526677,0.28432314,246.81,246.79,0.03]
[1758236527078,0.71,246.8,246.79,0.03]
[1758236527270,4.76186385,246.8,246.79,0.03]
[1758236527672,5.04618699,246.8,246.79,0.03]
[1758236527984,8.42243334,246.8,246.79,0.03]
[1758236528784,5.04618699,246.8,246.79,0.03]
[1758236530094,20.10069615,246.8,246.79,0.03]
[1758236531168,5.04618699,246.8,246.79,0.03]
[1758236532114,13.59559401,246.84,246.79,0.03]
[1758236532115,0.71,246.84,246.79,0.03]
[1758236532598,0.71,246.83,246.79,0.03]
[1758236532802,0.20216157,246.85,246.79,0.03]
[1758236533008,0.34432314,246.85,246.79,0.03]
[1758236533301,0.06,246.85,246.79,0.75]
[1758236534201,0.06,246.85,246.8,4.05186385]
[1758236534504,0.06,246.85,246.81,0.72]
[1758236535000,0.06,246.85,246.82,0.72]
[1758236535377,0.06,246.85,246.83,0.72]
[1758236536217,0.06,246.85,246.84,0.72]
[1758236538118,0.06,246.85,246.84,26.72]
[1758236538706,0.06,246.85,246.84,30.77120725]
[1758236539207,0.06,246.85,246.84,4.77120725]
[1758236539412,0.06,246.85,246.84,37.55120725]
[1758236540518,0.06,246.85,246.84,36.83120725]
[1758236541417,0.06,246.85,246.84,37.55120725]
[1758236541794,0.06,246.85,246.84,4.05120725]
[1758236542096,0.06,246.85,246.84,36.83120725]
[1758236542632,0.06,246.85,246.83,26.0]
[1758236542830,0.06,246.85,246.79,0.03]
[1758236542831,5.8794014,246.84,246.79,0.03]
[1758236543148,5.1694014,246.8,246.79,0.03]
[1758236543600,5.8794014,246.8,246.79,0.03]
[1758236543929,0.14216157,246.83,246.79,0.03]
[1758236544127,5.8794014,246.82,246.79,0.03]
[1758236544304,0.71,246.81,246.79,0.03]
[1758236544836,5.8794014,246.83,246.79,0.03]
[1758236545135,0.06,246.85,246.79,0.03]
[1758236545311,9.28044973,246.85,246.79,0.03]
[1758236545946,4.11104833,246.85,246.79,0.03]
[1758236546108,9.28044973,246.85,246.79,0.03]
[1758236546729,5.2294014,246.85,246.79,0.03]
[1758236547815,9.98044753,246.85,246.79,0.03]
[1758236548336,5.1694014,246.84,246.79,0.03]
[1758236549737,5.8694014,246.84,246.79,0.03]
[1758236550127,0.7,246.83,246.79,0.03]
[1758236550529,5.1694014,246.82,246.79,0.03]
[1758236550926,5.8694014,246.81,246.79,0.03]
[1758236551318,0.7,246.8,246.79,0.03]
[1758236551532,5.8694014,246.8,246.76,0.03]
[1758236551834,45.04931855,246.77,246.76,0.03]
[1758236552224,45.74931855,246.77,246.76,0.03]
[1758236552421,49.80167499,246.77,246.76,0.03]
[1758236554538,51.42409686,246.77,246.76,0.03]
[1758236554720,46.25469546,246.77,246.76,0.03]
[1758236554918,83.98409686,246.77,246.76,0.03]
[1758236556624,83.94409686,246.77,246.76,0.03]
[1758236557436,78.77469546,246.77,246.76,0.03]
[1758236557647,83.94409686,246.77,246.76,0.03]
[1758236558626,46.25469546,246.77,246.76,0.03]
[1758236558952,83.92409686,246.77,246.76,0.03]
[1758236560930,83.90409686,246.77,246.76,0.03]
[1758236561127,51.42409686,246.77,246.76,0.03]
[1758236561441,83.88409686,246.77,246.76,0.03]
[1758236563617,51.42409686,246.77,246.76,0.03]
[1758236563815,83.84409686,246.77,246.76,0.03]
[1758236566936,19.04931855,246.74,246.73,0.03]
[1758236567136,51.42931855,246.74,246.73,0.03]
[1758236567333,52.12931855,246.74,246.73,0.03]
[1758236567724,53.75200369,246.74,246.73,0.03]
[1758236567924,53.75200369,246.74,246.54,24.08001207]
[1758236567925,13.87991715,246.65,246.58,0.69]
[1758236568256,5.45372454,246.61,246.58,0.69]
[1758236568628,5.45372454,246.61,246.59,0.69]
[1758236568831,9.2243138,246.62,246.6,0.69]
[1758236569651,0.28432314,246.64,246.61,0.69]
[1758236569950,32.64432314,246.64,246.62,0.69]
[1758236570172,32.64432314,246.64,246.53,40.19705512]
[1758236570173,4.05449617,246.64,246.53,40.19705512]
[1758236570343,5.45372454,246.63,246.62,0.69]
[1758236571342,5.1694014,246.63,246.62,0.69]
[1758236571637,5.1694014,246.63,246.57,0.69]
[1758236572349,4.05449617,246.64,246.57,0.69]
[1758236572554,5.1694014,246.63,246.57,0.69]
[1758236573191,5.1694014,246.63,246.57,4.7454951]
[1758236573192,9.22406739,246.63,246.57,4.7454951]
[1758236573472,5.1694014,246.62,246.58,0.69]
[1758236573644,5.1694014,246.62,246.55,4.05585411]
[1758236573844,5.1694014,246.62,246.59,0.69]
[1758236574575,5.1694014,246.62,246.6,0.69]
[1758236575053,14.25559401,246.67,246.57,4.05563347]
[1758236575368,5.1694014,246.65,246.61,0.66]
[1758236575843,2.28222892,246.67,246.61,0.66]
[1758236576039,26.0,246.69,246.61,0.66]
[1758236576239,2.28222892,246.68,246.62,4.05482118]
[1758236576474,2.28222892,246.68,246.63,0.66]
[1758236576677,2.28222892,246.68,246.62,4.05482118]
[1758236576965,2.28222892,246.68,246.64,0.66]
[1758236577164,2.28222892,246.68,246.65,0.66]
[1758236578267,2.56655206,246.67,246.55,14.19590345]
[1758236578441,2.28222892,246.64,246.6,0.66]
[1758236579065,0.96432314,246.67,246.6,0.66]
[1758236579262,2.28222892,246.65,246.61,0.66]
[1758236579652,6.33667859,246.65,246.61,0.66]
[1758236579849,4.33846357,246.67,246.58,26.0]
[1758236580044,2.28222892,246.67,246.62,0.66]
[1758236580956,30.33782942,246.7,246.63,0.66]
[1758236581260,2.28222892,246.69,246.63,0.66]
[1758236582065,0.14216157,246.74,246.63,4.71461881]
[1758236582370,2.28222892,246.72,246.64,0.66]
[1758236583188,2.28222892,246.72,246.65,4.05432799]
[1758236583372,4.05320921,246.72,246.66,0.66]
[1758236583671,0.28432314,246.75,246.66,0.66]
[1758236583869,2.28222892,246.76,246.66,0.66]
[1758236584251,0.06,246.77,246.66,0.66]
[1758236584886,0.06,246.77,246.68,26.0]
[1758236585090,0.06,246.77,246.7,4.05350628]
[1758236585477,4.11240011,246.77,246.71,0.66]
[1758236586186,0.06,246.77,246.71,0.66]
[1758236587298,4.11236047,246.77,246.71,4.71330818]
[1758236590290,4.11236047,246.77,246.71,0.66]
[1758236590593,4.11236047,246.77,246.71,4.71334117]
[1758236592707,4.11236047,246.77,246.71,0.66]
[1758236593804,3.24655206,246.76,246.68,30.05375278]
[1758236593985,2.96222892,246.76,246.69,0.66]
[1758236594298,4.0526849,246.75,246.69,0.66]
[1758236594676,4.0526849,246.75,246.69,4.71366305]
[1758236594896,4.0526849,246.75,246.69,0.66]
[1758236595290,0.68,246.74,246.68,26.0]
[1758236595503,0.68,246.74,246.68,26.66]
[1758236595714,4.0526849,246.75,246.68,26.66]
[1758236595890,4.0526849,246.75,246.68,30.71380479]
[1758236596885,0.68,246.76,246.68,30.71380479]
[1758236597113,0.06,246.77,246.69,0.66]
[1758236597294,4.11244812,246.77,246.69,0.66]
[1758236597692,4.79244812,246.77,246.69,0.66]
[1758236598510,4.79244812,246.77,246.7,4.05350628]
[1758236600014,0.74,246.77,246.7,4.05350628]
[1758236601421,4.79242476,246.77,246.7,4.05350628]
[1758236603503,0.68,246.76,246.69,0.66]
[1758236603818,1.45916556,246.74,246.68,0.03]
[1758236604205,2.13916556,246.73,246.68,0.03]
[1758236605525,4.05317769,246.72,246.68,0.03]